[Event "24th Hoogeschool Zeeland 2022"]
[Site "Vlissingen"]
[Date "2022.08.10"]
[Round "6.17"]
[White "Duson, Robin"]
[Black "Grochal, Joey"]
[Result "1-0"]
[ECO "E25"]
[WhiteElo "2027"]
[BlackElo "2290"]
[Annotator "TA"]
[PlyCount "95"]
[EventDate "2022.08.05"]
[EventType "swiss"]
[EventCountry "NED"]
[SourceTitle "playchess.com"]
[Source "ChessBase"]
[SourceQuality "1"]
[TimeControl "40/5400+30:1800+30"]

{[%evp 14,95,-1,-2,14,14,8,6,30,27,30,23,36,50,37,32,32,14,76,25,42,18,63,59,73,72,164,162,209,223,202,70,284,131,293,201,233,157,250,250,275,269,390,369,430,425,432,379,418,305,481,487,469,444,471,463,403,338,481,464,491,473,706,688,595,355,29954,29959,29959,29960,29959,29960,29956,29959,6223,5222,29980,29981,29982,29983,29983,29984,29984,29984]} 1. d4 {[%emt 0:03:26]} Nf6 {[%emt 0:00:08]} 2. c4 {[%emt 0:00:17]} e6 {[%emt 0:00:07]} 3. Nc3 {[%emt 0:00:08]} Bb4 {[%emt 0:00:11]} 4. f3 {[%emt 0:00:20]} d5 {[%emt 0:01:18]} 5. a3 {[%emt 0:00:35]} Bxc3+ {[%emt 0:00:17]} 6. bxc3 {[%emt 0:00:10]} c5 {[%emt 0:01:11]} 7. cxd5 {[%emt 0:00:31]} exd5 {[%emt 0:01:08]} 8. e3 {[%emt 0:00:28]} c4 {[%emt 0:02:01] E25: Nimzo-Indian: Sämisch: 5...c5 6 f3 d5 7 cxd5.} 9. g4 {[%emt 0:01:41]} O-O {[%emt 0:02:28]} 10. Ne2 {[%emt 0:03:05]} Re8 {[%emt 0:02:08][%cal Oc8g4] The position is equal.} 11. Bg2 {[%emt 0:02:05]} Nc6 {[%emt 0:05:54][%cal Bb8c6,Bc6a5,Ba5b3][%mdl 32]} 12. O-O {[%emt 0:11:12]} Na5 {[%emt 0:04:21]} 13. Ng3 {[%emt 0:02:48]} h6 {[%emt 0:05:27]} 14. Rb1 {[%emt 0:05:44]} Nb3 {[%emt 0:02:15]} 15. Qc2 {[%emt 0:08:05]} Qc7 {[%emt 0:03:15] [#]} (15... a5 $11) 16. Qf2 {[%emt 0:05:03]} (16. e4 $1 $16) 16... Be6 {[%emt 0:07:27]} 17. h3 {[%emt 0:03:25] [#]} (17. e4 {with more complications.} dxe4 18. fxe4 Nxc1 19. Rbxc1 Nxg4 20. Qe1) 17... Rad8 $146 {[%emt 0:01:45]} ({Predecessor:} 17... Nd7 18. e4 f6 19. Be3 Qa5 20. Qc2 Bf7 21. h4 Qc7 {0-1 (21) Meyner,H (2631)-Roberts,A (2344) LSS email 2016}) 18. e4 {[%emt 0:01:51][%cal Be3e4,Be4e5][%mdl 32] And now e5 would win.} Nxc1 {[%emt 0:01:55]} 19. Rfxc1 {[%emt 0:04:18]} Nh7 {[%emt 0:01:24] [#]} (19... dxe4 $16 20. fxe4 b6) 20. e5 $1 $18 {[%emt 0:01:56]} Rf8 {[%emt 0:02:02]} (20... Bd7 {was necessary.} 21. f4 Bc6) 21. f4 {[%emt 0:00:54]} f5 {[%emt 0:00:41]} 22. Rb5 {[%emt 0:03:11]} ({White should try} 22. gxf5 $18 Bxf5 23. Nxf5 Rxf5 24. Qh4) 22... Qf7 {[%emt 0:06:45]} ({Black should play} 22... fxg4 $14 23. hxg4 Bxg4) 23. Rf1 {[%emt 0:04:47]} (23. Nxf5 $6 Bxf5 24. gxf5 a6 $18) (23. gxf5 $18 Bxf5 24. Nxf5 Qxf5 25. Rf1 (25. Rxb7 Ng5 $18) (25. Bxd5+ $2 Rxd5 26. Rxb7 Qxh3 $19)) 23... Kh8 $2 {[%emt 0:01:13] This costs Black the game.} (23... fxg4 $16 {keeps fighting.} 24. f5 gxh3 25. Bxh3 Bc8) 24. Qb2 {[%emt 0:03:48]} b6 {[%emt 0:01:38]} 25. a4 {[%emt 0:01:14]} (25. Nxf5 $6 Bxf5 26. gxf5 Qxf5) 25... Qe7 {[%emt 0:03:00]} (25... fxg4 $16 26. f5 gxh3 27. fxe6 Qxe6) 26. gxf5 {[%emt 0:03:23]} Bxf5 {[%emt 0:00:03]} 27. Rxd5 {[%emt 0:01:27]} (27. Nxf5 $6 Rxf5 28. Rxd5 (28. Bxd5 Qf8 $14) 28... Rdf8 $18) 27... Rxd5 {[%emt 0:00:52]} (27... Bd3 {is a better defense.}) 28. Nxf5 {[%emt 0:00:12]} ({Not} 28. Bxd5 Bxh3 29. Rf3 Qd7 $14) 28... Rxf5 {[%emt 0:00:27]} 29. Bxd5 {[%emt 0:00:10]} Qh4 {[%emt 0:00:30]} 30. Qh2 {[%emt 0:01:00]} g5 {[%emt 0:01:51][%cal Rg5f4]} 31. fxg5 {[%emt 0:02:33]} Qxg5+ {[%emt 0:06:13]} (31... Rxg5+ $142 32. Bg2 (32. Kh1 Rg3 $18) 32... Qe4) 32. Qg2 {[%emt 0:02:35] Active counter play!} Rxf1+ {[%emt 0:02:25]} 33. Kxf1 {[%emt 0:00:08][%mdl 4096] Endgame Strongly threatening Qxg5. KQB-KQN} Qc1+ {[%emt 0:00:07]} 34. Kf2 {[%emt 0:01:18][%csl Gd5][%cal Rg2g8]} Ng5 {[%emt 0:35:03]} 35. Qg3 {[%emt 0:02:46]} Qd2+ {[%emt 0:00:00]} (35... Qc2+ {was called for.} 36. Kg1 Qxa4) 36. Kg1 {[%emt 0:00:18]} Qd1+ {[%emt 0:00:00]} 37. Kg2 {[%emt 0:03:42]} Qc2+ {[%emt 0:00:00]} (37... Qxa4 $142 38. Qf2 Nh7) 38. Qf2 {[%emt 0:01:05]} Qg6 {[%emt 0:00:00] Hoping for ...Ne4+.} 39. Qf6+ {[%emt 0:01:39]} Kh7 $2 {[%emt 0:00:00]} (39... Qxf6 $18 40. exf6 Nh7) 40. Qxg6+ {[%emt 0:02:16]} Kxg6 {[%emt 0:00:00] KB-KN} 41. h4 {[%emt 0:30:26][%cal Bh3h4,Bh4h5][%mdl 32]} Nf7 {[%emt 0:06:17]} 42. h5+ {[%emt 0:01:49]} Kg7 {[%emt 0:00:04]} 43. Bxf7 {[%emt 0:00:21]} Kxf7 {[%emt 0:00:04]} 44. d5 {[%emt 0:00:10] White wants to mate with Kg3.} a6 {[%emt 0:00:18]} 45. Kf3 {[%emt 0:00:14] White mates.} b5 {[%emt 0:00:16]} 46. axb5 {[%emt 0:00:12]} axb5 {[%emt 0:00:02]} 47. Ke4 {[%emt 0:00:09]} Ke7 {[%emt 0:00:05]} 48. Kd4 {[%emt 0:00:10] Weighted Error Value: White=0.25 (precise) /Black=0.71} 1-0

[Event "24th Hoogeschool Zeeland 2022"]
[Site "Vlissingen"]
[Date "2022.08.10"]
[Round "6.18"]
[White "Laux, Dominik"]
[Black "Bakker, Jouke"]
[Result "1/2-1/2"]
[ECO "B67"]
[WhiteElo "2320"]
[BlackElo "2057"]
[Annotator "TA"]
[PlyCount "85"]
[EventDate "2022.08.05"]
[EventType "swiss"]
[EventCountry "NED"]
[SourceTitle "playchess.com"]
[Source "ChessBase"]
[SourceQuality "1"]
[TimeControl "40/5400+30:1800+30"]

{[%evp 18,85,53,26,33,27,29,35,55,30,40,41,49,47,68,60,56,59,103,34,43,53,43,52,59,41,55,12,16,-16,0,0,0,0,0,0,117,0,59,49,80,0,14,0,0,0,0,0,0,0,0,0,0,0,0,0,0,0,0,0,12,12,12,0,0,0,0,0,12,0]} 1. e4 {[%emt 0:02:17]} c5 {[%emt 0:00:38]} 2. Nf3 {[%emt 0:00:29]} d6 {[%emt 0:00:16]} 3. d4 {[%emt 0:00:24]} cxd4 {[%emt 0:00:20]} 4. Nxd4 {[%emt 0:00:10]} Nf6 {[%emt 0:00:15]} 5. Nc3 {[%emt 0:00:09]} Nc6 {[%emt 0:00:39]} 6. Bg5 {[%emt 0:00:24]} e6 {[%emt 0:00:28]} 7. Qd2 {[%emt 0:00:44]} a6 {[%emt 0:00:38]} 8. O-O-O {[%emt 0:01:08]} Bd7 {[%emt 0:02:33]} 9. f3 {[%emt 0:01:14]} Be7 {[%emt 0:01:41]} 10. Kb1 {[%emt 0:01:26]} Nxd4 $1 {[%emt 0:10:17][%mdl 4] is more profitable than 10...Qc7 at the moment. B67: Sicilian: Richter-Rauzer: 7...a6 8 0-0-0 Bd7, lines without 9 f4 Be7.} 11. Qxd4 {[%emt 0:00:06]} Bc6 {[%emt 0:00:08]} 12. h4 {[%emt 0:02:29]} Qc7 {[%emt 0:08:35] White is slightly better.} 13. Qd2 {[%emt 0:07:38]} Rd8 {[%emt 0:11:16]} 14. Ne2 {[%emt 0:06:31] [#]} h6 $146 {[%emt 0:04:54]} ({Predecessor:} 14... b5 15. Nd4 Bd7 16. g4 Qb7 17. Be3 e5 18. Nb3 Be6 19. Bh3 Nd7 20. g5 Nb6 21. Bxb6 Qxb6 {1-0 (30) Solodovnichenko,Y (2554)-Seo,J (2360) Vasteras 2018}) 15. Be3 {[%emt 0:02:53]} d5 {[%emt 0:10:47]} 16. e5 {[%emt 0:02:53]} Nd7 {[%emt 0:00:06]} ({Not} 16... Qxe5 17. Bf4 Qf5 18. Nd4 $16) 17. f4 {[%emt 0:03:47]} Bb5 {[%emt 0:00:31]} 18. Qe1 {[%emt 0:21:58]} (18. Nd4 $16) 18... Rc8 {[%emt 0:12:47]} 19. Nd4 {[%emt 0:07:44]} Bxf1 {[%emt 0:00:53]} 20. Rxf1 {[%emt 0:00:11]} Bc5 {[%emt 0:04:26]} 21. c3 {[%emt 0:04:07]} Bxd4 {[%emt 0:02:09]} 22. Rxd4 {[%emt 0:00:49]} h5 {[%emt 0:02:50]} 23. Qe2 {[%emt 0:02:53]} (23. g4 $5) 23... b5 {[%emt 0:02:09]} 24. a4 {[%emt 0:05:33]} Rb8 {[%emt 0:02:11]} 25. axb5 {[%emt 0:02:49]} axb5 {[%emt 0:00:42]} 26. Rb4 {[%emt 0:02:28]} Ke7 {[%emt 0:01:13]} (26... g6 $11) 27. Rxb5 {[%emt 0:06:19]} ({Better is} 27. f5 $16 Nxe5 28. fxe6 (28. Rxb5 Qc4 $11) 28... Kxe6 29. Bd4 (29. Rxb5 $2 Qc4 $19)) 27... Rxb5 {[%emt 0:00:11]} (27... Qc6 $11 28. Rxb8 Rxb8) 28. Qxb5 $14 {[%emt 0:00:03] Threatens to win with Qb4+.} Rb8 {[%emt 0:00:10]} 29. Qd3 {[%emt 0:01:28] White is more active.} (29. Qa6 $16) 29... g6 {[%emt 0:00:24] The position is equal.} 30. Rc1 {[%emt 0:03:26]} Nc5 {[%emt 0:03:07]} 31. Bxc5+ {[%emt 0:00:50]} Qxc5 {[%emt 0:00:04]} 32. Qd4 {[%emt 0:03:57] Inhibits Qf2.} Qxd4 {[%emt 0:02:08]} 33. cxd4 $11 {[%emt 0:00:02][%mdl 4096] Endgame KR-KR} Rb4 $1 {[%emt 0:00:06]} 34. Rd1 {[%emt 0:01:21]} Rb3 $1 {[%emt 0:00:15] Inhibits Rd3.} 35. Ka2 {[%emt 0:00:43]} Rg3 {[%emt 0:00:06]} 36. b4 {[%emt 0:01:19]} Rxg2+ {[%emt 0:00:32]} 37. Kb3 {[%emt 0:00:32]} Rg3+ {[%emt 0:00:23]} 38. Ka4 {[%emt 0:01:04] [#] Strongly threatening Ka5.} Rc3 {[%emt 0:01:11]} 39. Ka5 {[%emt 0:02:28]} Kd7 $1 {[%emt 0:03:25]} 40. Kb6 {[%emt 0:00:10] Hoping for b5.} Rc6+ $1 {[%emt 0:03:48]} 41. Kb7 {[%emt 0:30:39] aiming for b5.} Rc7+ {[%emt 0:34:29]} 42. Kb6 {[%emt 0:00:31] [#] And now b5 would win.} Rc6+ $1 {[%emt 0:00:00]} 43. Kb7 {[%emt 0:00:00] Weighted Error Value: White=0.14 (very precise) /Black=0.12 (very precise)} 1/2-1/2

[Event "24th Hoogeschool Zeeland 2022"]
[Site "Vlissingen"]
[Date "2022.08.10"]
[Round "6.19"]
[White "Boghossian, Wahe"]
[Black "Honkoop, Gilian"]
[Result "1/2-1/2"]
[ECO "D03"]
[WhiteElo "1978"]
[BlackElo "2205"]
[Annotator "TA"]
[PlyCount "77"]
[EventDate "2022.08.05"]
[EventType "swiss"]
[EventCountry "NED"]
[SourceTitle "playchess.com"]
[Source "ChessBase"]
[SourceQuality "1"]
[TimeControl "40/5400+30:1800+30"]

{[%evp 19,77,0,8,0,16,-14,-6,-6,-12,-12,13,8,22,-19,-3,-26,-28,-24,-21,-28,-12,-22,-20,-20,-8,-15,-31,-26,-33,-30,-30,-45,-43,-55,-47,-61,-48,-63,-47,-83,-90,-127,-91,-144,-166,-187,-183,-195,-187,-204,-44,-68,0,0,0,0,0,0,0,0]} 1. Nf3 {[%emt 0:00:12]} Nf6 {[%emt 0:01:37]} 2. d4 {[%emt 0:00:08]} e6 {[%emt 0:00:07]} 3. Bg5 {[%emt 0:00:04]} h6 {[%emt 0:01:56]} 4. Bh4 {[%emt 0:00:19]} d5 {[%emt 0:01:05]} 5. e3 {[%emt 0:00:55]} Be7 {[%emt 0:00:11]} 6. Nbd2 {[%emt 0:01:09]} O-O {[%emt 0:00:28]} 7. Bd3 {[%emt 0:01:40]} b6 {[%emt 0:00:24]} 8. Ne5 {[%emt 0:01:14]} c5 {[%emt 0:01:19]} 9. c3 {[%emt 0:01:02]} Bb7 {[%emt 0:01:24][%cal Bc8b7,Bb7c6,Bc6e8][%mdl 32]} 10. O-O {[%emt 0:01:25]} Nc6 {[%emt 0:12:35]} 11. f4 {[%emt 0:02:01] D03: 1 d4 d5 2 Nf3 Nf6 3 Bg5, including Torre Attack with early ...d5.} Ne4 {[%emt 0:06:08] 11...Nd7 injects fresh life into this line.} 12. Nxc6 {[%emt 0:21:57]} Bxc6 {[%emt 0:00:04]} 13. Bxe7 {[%emt 0:00:27]} Qxe7 {[%emt 0:00:02]} 14. Nf3 {[%emt 0:01:11]} f6 {[%emt 0:04:40] [#]} 15. Nh4 $146 {[%emt 0:05:13] Hoping for Bxe4.} ({Predecessor:} 15. Qe2 Rac8 16. Kh1 Qe8 17. g4 Rc7 18. Rg1 g5 19. Raf1 gxf4 20. exf4 Rg7 21. Re1 {1-0 (33) Dluhosch,T (2083)-Budde,W (2221) corr 1997}) 15... Be8 {[%emt 0:14:22]} 16. Qc2 {[%emt 0:05:21]} (16. Bxe4 $5 dxe4 17. f5 $11) 16... Nd6 {[%emt 0:07:19]} 17. Bh7+ {[%emt 0:11:07]} Kh8 {[%emt 0:00:09]} 18. Bg6 {[%emt 0:01:39]} f5 {[%emt 0:00:25]} 19. g3 {[%emt 0:00:09]} Qf6 {[%emt 0:14:53]} 20. Bxe8 {[%emt 0:00:58]} Rfxe8 {[%emt 0:00:04]} 21. Nf3 $1 {[%emt 0:02:19]} Rec8 {[%emt 0:03:39]} 22. Ne5 {[%emt 0:02:15]} Rc7 {[%emt 0:00:05]} 23. Qd3 {[%emt 0:02:38]} a5 {[%emt 0:01:12]} 24. a4 {[%emt 0:01:55]} c4 {[%emt 0:05:17]} 25. Qc2 {[%emt 0:02:06]} Ne4 {[%emt 0:00:22]} 26. Kg2 {[%emt 0:05:34]} Kh7 {[%emt 0:00:50]} 27. Qe2 {[%emt 0:03:25]} Qe7 {[%emt 0:02:31]} 28. Ra2 {[%emt 0:06:03]} Qe8 {[%emt 0:00:32]} 29. Rfa1 {[%emt 0:00:51]} Rb7 {[%emt 0:00:13]} 30. g4 {[%emt 0:07:46]} Rab8 {[%emt 0:02:11]} 31. gxf5 {[%emt 0:00:58]} ({White should try} 31. Rg1) 31... exf5 $17 {[%emt 0:00:05]} 32. Kh1 {[%emt 0:00:34] [#]} b5 $1 {[%emt 0:00:38]} 33. axb5 {[%emt 0:00:13]} Rxb5 {[%emt 0:00:02]} 34. Rg1 {[%emt 0:00:28] [#]} R8b7 $2 {[%emt 0:00:28]} ({Black should play} 34... a4 $1 $19 {...R8b7 is the strong threat.} 35. Rg2 (35. Qg2 R8b7 $17) 35... Rb3) 35. Rg6 $1 $15 {[%emt 0:00:35]} Re7 {[%emt 0:00:43]} (35... Nf6 $1 $15) 36. Ra6 $11 {[%emt 0:01:08] The position is equal.} Reb7 {[%emt 0:01:53][%cal Oa5a4]} 37. R6xa5 {[%emt 0:01:29]} Rxa5 {[%emt 0:00:37]} 38. Rxa5 {[%emt 0:00:01]} Qd8 {[%emt 0:00:01]} 39. Qh5 {[%emt 0:05:13] Weighted Error Value: White=0.10 (very precise) /Black=0.17 (very precise)} 1/2-1/2

[Event "24th Hoogeschool Zeeland 2022"]
[Site "Vlissingen"]
[Date "2022.08.10"]
[Round "6.20"]
[White "Lacrosse, Marc"]
[Black "Baarslag, Ed"]
[Result "1/2-1/2"]
[ECO "D37"]
[WhiteElo "2003"]
[BlackElo "2161"]
[Annotator "TA"]
[PlyCount "51"]
[EventDate "2022.08.05"]
[EventType "swiss"]
[EventCountry "NED"]
[SourceTitle "playchess.com"]
[Source "ChessBase"]
[SourceQuality "1"]
[TimeControl "40/5400+30:1800+30"]

{[%evp 9,51,13,12,8,12,16,11,0,0,-47,-52,-43,-37,-36,-42,-65,53,36,37,-95,28,12,12,8,4,4,4,8,19,0,19,19,39,22,36,19,19,18,49,0,0,0,55,9]} 1. d4 {[%emt 0:03:00]} d5 {[%emt 0:00:35]} 2. c4 {[%emt 0:00:46][%cal Bc2c4,Bc4c5,Bc5b6,Bb6b7][%mdl 32]} e6 {[%emt 0:00:10]} 3. Nf3 {[%emt 0:00:48]} Nf6 {[%emt 0:00:19]} 4. Nc3 {[%emt 0:01:07]} a6 {[%emt 0:00:41]} 5. c5 {[%emt 0:05:46]} b6 {[%emt 0:01:10]} 6. cxb6 {[%emt 0:02:22] D37: Queen's Gambit Declined: 5 Bf4.} c5 {[%emt 0:00:48]} ({Don't play} 6... Nbd7 7. bxc7 Qxc7 8. Bd2 $14) 7. Qb3 {[%emt 0:22:09] [#] Strongly threatening b7.} Bd7 {[%emt 0:04:37] [#]} 8. dxc5 $146 {[%emt 0:24:32] The position is equal.} ({Predecessor:} 8. e4 c4 9. Qc2 Nxe4 10. Nxe4 dxe4 11. Qxe4 Bc6 12. Qe3 Bxf3 13. Qxf3 Bb4+ 14. Bd2 Bxd2+ 15. Kxd2 Qxb6 16. Qxa8 Qxb2+ {½-½ (22) Bjerre,J (2551)-Grandelius,N (2663) chess24.com INT 2020}) 8... Bxc5 {[%emt 0:02:48]} 9. Na4 {[%emt 0:08:32]} (9. Bf4 $11 {is more appropriate.} Bxb6 10. e3) 9... Bxa4 $15 {[%emt 0:04:20]} 10. Qxa4+ {[%emt 0:00:05]} Nbd7 {[%emt 0:00:35]} 11. b7 {[%emt 0:06:54]} Ra7 {[%emt 0:01:43]} 12. b4 {[%emt 0:00:54]} Bb6 {[%emt 0:02:24]} ({Black should play} 12... Bd6 $15) 13. e3 $1 $14 {[%emt 0:12:23]} a5 {[%emt 0:10:50]} 14. Bb2 {[%emt 0:01:39]} (14. b5 $14 {keeps the upper hand.}) 14... Rxb7 {[%emt 0:05:52]} (14... axb4 $17 15. Qc2 (15. Qxb4 $2 Ba5 $19) 15... Rxb7) 15. Bb5 {[%emt 0:02:08]} axb4 {[%emt 0:12:08]} 16. Bxf6 {[%emt 0:01:03]} ({Don't blunder} 16. Qxb4 $2 Ba5 17. Bxd7+ Nxd7 $19) 16... gxf6 {[%emt 0:01:47]} 17. O-O {[%emt 0:00:35]} O-O {[%emt 0:08:57]} 18. Qxb4 {[%emt 0:00:36]} Bc5 {[%emt 0:00:54]} 19. Qg4+ {[%emt 0:00:12]} Kh8 {[%emt 0:00:13]} 20. a4 {[%emt 0:01:06]} f5 {[%emt 0:01:07]} 21. Qf4 {[%emt 0:01:07]} Be7 {[%emt 0:02:06]} 22. Rac1 {[%emt 0:00:40]} Bf6 {[%emt 0:00:49]} 23. Rc2 {[%emt 0:00:51]} Bg7 {[%emt 0:02:50]} 24. Qd6 {[%emt 0:00:51]} (24. Qb4 $14) 24... Ne5 $11 {[%emt 0:06:02]} 25. Qxd8 {[%emt 0:00:05]} Rxd8 {[%emt 0:00:08]} ({Better is} 25... Nxf3+ $11 26. gxf3 Rxd8) 26. Nxe5 {[%emt 0:00:41] Weighted Error Value: White=0.15 (very precise) /Black=0.27 (precise)} (26. Nd4 $14) 1/2-1/2

[Event "24th Hoogeschool Zeeland 2022"]
[Site "Vlissingen"]
[Date "2022.08.10"]
[Round "6.21"]
[White "Verwoert, Jef"]
[Black "Bui, Bao Anh Le"]
[Result "1-0"]
[ECO "B21"]
[WhiteElo "1998"]
[BlackElo "2109"]
[Annotator "TA"]
[PlyCount "39"]
[EventDate "2022.08.05"]
[EventType "swiss"]
[EventCountry "NED"]
[SourceTitle "playchess.com"]
[Source "ChessBase"]
[SourceQuality "1"]
[TimeControl "40/5400+30:1800+30"]

{[%evp 9,39,-71,-66,-61,-65,-71,-35,-28,188,200,232,235,343,337,342,329,338,317,428,451,531,516,508,375,938,928,29987,588,585,578,481,444]} 1. e4 {[%emt 0:00:03]} c5 {[%emt 0:04:01]} 2. d4 {[%emt 0:00:10]} cxd4 {[%emt 0:00:16]} 3. f4 {[%emt 0:00:10]} Nc6 {[%emt 0:04:55]} 4. Nf3 {[%emt 0:00:19]} d5 {[%emt 0:07:24]} 5. exd5 {[%emt 0:08:21]} Qxd5 {[%emt 0:00:19]} 6. Nc3 {[%emt 0:04:32] B21: Sicilian: 2 f4 and Morra Gambit.} Qe6+ {[%emt 0:04:05]} 7. Ne2 {[%emt 0:00:23]} Qe4 {[%emt 0:00:35]} 8. Nfxd4 {[%emt 0:40:00][%cal Bf3d4,Bd4b5,Bb5c3][%mdl 32] [#] Black must now prevent Nb5. Black is slightly better.} Bh3 $146 {[%emt 0:09:39] [#]} (8... Bd7 $11 {and Black is okay.}) ({Predecessor:} 8... Nxd4 9. Qxd4 Qxc2 10. Be3 e6 11. Rc1 Qf5 12. Rd1 Qa5+ 13. Nc3 a6 {0-1 (13) Wells,L-Bonner,M IECG email 1998}) 9. Nb5 $1 $18 {[%emt 0:10:33][%cal Rb5c7]} Rc8 {[%emt 0:32:00] Against Nc7+} 10. Nbc3 {[%emt 0:00:51]} Qg6 {[%emt 0:01:51]} (10... Qe6 $142) 11. gxh3 {[%emt 0:01:36]} Rd8 {[%emt 0:00:27]} 12. Bd2 {[%emt 0:02:32]} ({Don't do} 12. Nd5 e6 13. Nc7+ Ke7) 12... Nb4 {[%emt 0:00:29]} 13. Rc1 {[%emt 0:01:04]} e5 {[%emt 0:02:11]} 14. fxe5 {[%emt 0:08:18]} Bc5 {[%emt 0:01:15]} 15. Nf4 {[%emt 0:02:18]} Qf5 {[%emt 0:08:44]} 16. Qg4 {[%emt 0:02:17]} Nxc2+ $2 {[%emt 0:01:57] [#]} (16... Qxe5+ 17. Qe2 Qxe2+ 18. Bxe2 Nf6) 17. Rxc2 $1 {[%emt 0:01:00]} Qxc2 {[%emt 0:00:09] [#]} (17... Qxe5+ 18. Qe2) 18. Bd3 $1 {[%emt 0:04:55][%mdl 512]} Rxd3 {[%emt 0:01:04]} 19. Nxd3 {[%emt 0:00:13]} Qxd3 {[%emt 0:05:53]} 20. Qc8+ {[%emt 0:00:23] White took control after the opening.  Weighted Error Value: White=0.42/Black=1.24} 1-0

[Event "24th Hoogeschool Zeeland 2022"]
[Site "Vlissingen"]
[Date "2022.08.10"]
[Round "6.22"]
[White "Kools, Thomas"]
[Black "Bazilius, Augustinas"]
[Result "1/2-1/2"]
[ECO "B23"]
[WhiteElo "2135"]
[BlackElo "2045"]
[Annotator "TA"]
[PlyCount "73"]
[EventDate "2022.08.05"]
[EventType "swiss"]
[EventCountry "NED"]
[SourceTitle "playchess.com"]
[Source "ChessBase"]
[SourceQuality "1"]
[TimeControl "40/5400+30:1800+30"]

{[%evp 10,73,17,6,20,11,17,19,102,-10,22,1,11,15,20,21,75,37,57,12,69,24,31,24,96,91,97,96,102,86,93,85,89,84,95,76,85,71,71,71,71,71,129,131,122,116,126,47,42,4,4,4,101,101,131,71,71,71,71,64,71,0,71,0,71,0]} 1. e4 {[%emt 0:00:04]} c5 {[%emt 0:00:14]} 2. Nc3 {[%emt 0:00:07]} a6 {[%emt 0:00:03]} 3. g3 {[%emt 0:00:08]} b5 {[%emt 0:00:04]} 4. Bg2 {[%emt 0:00:06]} Bb7 {[%emt 0:00:05]} 5. d3 {[%emt 0:00:08]} e6 {[%emt 0:03:07]} 6. Nh3 {[%emt 0:00:14]} Nf6 {[%emt 0:02:46] B23: Closed Sicilian: Lines without g3.} 7. O-O {[%emt 0:00:14]} d6 {[%emt 0:14:30] 7...b4 might become the main line.} 8. f4 {[%emt 0:00:53]} Be7 {[%emt 0:02:54]} (8... Qd7 $11) 9. f5 {[%emt 0:00:55]} (9. e5 $16 Bxg2 10. Kxg2) 9... e5 {[%emt 0:03:01]} 10. Nd5 {[%emt 0:08:02]} (10. Nf2 {is interesting.} O-O 11. Ng4 Nxg4 12. Qxg4 Nd7 13. Bh6) 10... Nxd5 {[%emt 0:04:38]} 11. exd5 {[%emt 0:00:08]} h6 {[%emt 0:07:50] [#]} 12. Qg4 $146 {[%emt 0:03:27]} ({Predecessor:} 12. c4 Nd7 13. Nf2 bxc4 14. dxc4 Nf6 15. Ne4 Nxe4 16. Bxe4 {0-1 (47) Quparadze,G (2481)-Pantsulaia,L (2607) Doha 2016}) 12... Bf6 {[%emt 0:00:24]} (12... h5 $11 13. Qf3 (13. Qxg7 $2 Bf6 $19) 13... Nd7) 13. Bd2 {[%emt 0:12:03]} Nd7 {[%emt 0:05:57][%cal Oc5c4]} 14. Rae1 {[%emt 0:08:23]} Qb6 {[%emt 0:12:36]} (14... c4 $11) 15. Kh1 {[%emt 0:06:08]} a5 {[%emt 0:05:50]} 16. Nf2 {[%emt 0:13:39]} O-O-O {[%emt 0:02:22]} (16... h5 $11 {remains equal.} 17. Qe2 Be7) 17. c4 $16 {[%emt 0:04:13]} b4 {[%emt 0:02:09]} 18. b3 {[%emt 0:00:18]} Kc7 {[%emt 0:04:52]} 19. Ra1 {[%emt 0:03:17]} Rhg8 {[%emt 0:05:35]} 20. Ne4 {[%emt 0:00:12]} Be7 {[%emt 0:03:02]} 21. a3 {[%emt 0:02:41]} Nf6 {[%emt 0:00:54]} 22. Nxf6 {[%emt 0:00:35]} Bxf6 {[%emt 0:00:26]} 23. Be4 {[%emt 0:01:03]} Kd7 {[%emt 0:03:35]} 24. Kg2 {[%emt 0:03:34]} Ra8 {[%emt 0:04:23]} 25. Qh5 {[%emt 0:00:58]} Ke7 {[%emt 0:00:26]} (25... Rgf8 $142) 26. axb4 {[%emt 0:15:27]} axb4 {[%emt 0:00:20]} 27. Rxa8 {[%emt 0:00:03]} Rxa8 {[%emt 0:01:09]} 28. h4 {[%emt 0:00:06]} ({White should play} 28. g4 $1 $16) 28... Rh8 $1 $14 {[%emt 0:05:55]} 29. g4 {[%emt 0:02:06]} (29. Ra1 $5 {[%cal Rg3g4]}) 29... Qd8 {[%emt 0:00:53]} 30. Ra1 {[%emt 0:00:32] With the idea Be3.} Bc8 {[%emt 0:02:17]} ({Resist} 30... Qb8 31. Be3 $16) (30... Qf8 $11 {keeps the balance.}) 31. Be3 $16 {[%emt 0:05:12] Strongly threatening Ra7+.} Bd7 {[%emt 0:00:44] [#]} 32. Ra7 {[%emt 0:01:31]} (32. Bxc5 $142 $1 {[%mdl 512]} dxc5 33. d6+ Kxd6 34. Qxf7) 32... Qe8 {[%emt 0:01:16]} 33. Kg3 {[%emt 0:10:33]} Qf8 {[%emt 0:01:07]} 34. Ra6 {[%emt 0:00:00][%cal Oe3c5] Hoping for Bxc5! White is much more active.} Qc8 {[%emt 0:00:11]} 35. Ra7 {[%emt 0:00:00]} Qf8 $1 {[%emt 0:00:11]} 36. Ra6 {[%emt 0:00:00][%cal Oe3c5] aiming for Bxc5!} Qc8 {[%emt 0:00:07]} 37. Ra7 {[%emt 0:00:30] Weighted Error Value: White=0.23 (precise) /Black=0.23 (precise)} (37. Ra2 $16) 1/2-1/2